bitfinex-derivatives/quotes_SOLF0:USTF0_20250514
["timestamp","ask_amount","ask_price","bid_price","bid_amount"]
[1747189956171,5.5614,179.8,179.77,5.5623]
[1747189956361,79.04,179.84,179.77,5.5623]
[1747189956767,5.5614,179.8,179.77,5.5623]
[1747189957268,79.04,179.84,179.7,3.5452]
[1747189957465,371.05888818,179.83,179.67,79.0]
[1747189957859,5.5624,179.77,179.67,79.0]
[1747189958369,5.5629,179.76,179.67,79.0]
[1747189958668,79.0,179.78,179.67,79.0]
[1747189960471,79.0,179.78,179.73,5.5635]
[1747189960769,79.0,179.78,179.67,79.0]
[1747189960977,5.5616,179.8,179.73,5.5633]
[1747189961270,79.0,179.79,179.71,79.0]
[1747189961667,5.5622,179.78,179.72,5.5637]
[1747189961872,5.5622,179.78,179.71,79.0]
[1747189962062,5.562,179.78,179.73,5.5635]
[1747189962669,5.5628,179.76,179.71,84.564]
[1747189963067,5.5628,179.76,179.71,79.0]
[1747189963271,5.5628,179.76,179.71,84.5641]
[1747189963474,5.5626,179.77,179.71,79.0]
[1747189963973,5.5614,179.81,179.71,79.0]
[1747189964174,84.5414,179.81,179.71,79.0]
[1747189964375,84.5414,179.81,179.77,5.5623]
[1747189964575,78.98,179.81,179.71,79.0]
[1747189964969,364.0,179.83,179.71,79.0]
[1747189965266,78.98,179.82,179.71,79.0]
[1747189965471,78.98,179.82,179.77,5.5623]
[1747189966073,78.98,179.82,179.71,79.0]
[1747189966669,5.5615,179.8,179.76,5.5625]
[1747189967068,78.98,179.82,179.76,5.5625]
[1747189967475,78.98,179.82,179.73,79.0]
[1747189967675,364.0,179.89,179.65,3.5289]
[1747189967974,521.96,179.88,179.76,5.5624]
[1747189968174,364.0,179.87,179.74,79.0]
[1747189968975,0.97188909,179.86,179.74,79.0]
[1747189969174,5.5618,179.79,179.76,5.5625]
[1747189969374,84.5018,179.79,179.76,5.5625]
[1747189969875,78.94,179.79,179.77,5.5623]
[1747189970174,364.0,179.87,179.67,11.1307]
[1747189970375,442.94,179.86,179.68,79.0]
[1747189970675,5.5616,179.8,179.77,5.5623]
[1747189970871,78.94,179.79,179.77,5.5623]
[1747189971065,5.5616,179.8,179.77,5.5623]
[1747189971272,84.5016,179.8,179.77,5.5623]
[1747189971673,5.5617,179.79,179.76,5.5626]
[1747189972675,84.5015,179.8,179.76,5.5626]
[1747189972977,84.5015,179.8,179.77,5.5622]
[1747189974671,5.5618,179.79,179.68,79.0]
[1747189974977,78.94,179.8,179.68,79.0]
[1747189975376,84.5016,179.8,179.68,79.0]
[1747189976072,84.5016,179.8,179.76,5.5624]
[1747189976378,84.5016,179.8,179.68,79.0]
[1747189976773,78.94,179.8,179.68,79.0]
[1747189977373,4.38828856,179.85,179.69,4.38828856]
[1747189977672,78.88,179.84,179.69,4.38828856]
[1747189977972,5.5611,179.81,179.69,4.38828856]
[1747189978169,78.88,179.84,179.69,4.38828856]
[1747189978373,5.5611,179.81,179.77,5.5623]
[1747189978879,78.88,179.81,179.74,79.0]
[1747189979376,78.88,179.81,179.79,5.5615]
[1747189980579,78.88,179.81,179.8,5.5614]
[1747189980876,78.88,179.81,179.74,79.0]
[1747189982382,78.88,179.81,179.78,5.5618]
[1747189982782,78.88,179.81,179.74,79.0]
[1747189983482,78.88,179.81,179.78,5.5618]
[1747189983678,78.88,179.81,179.74,79.0]
[1747189983982,78.88,179.81,179.78,5.562]
[1747189984285,78.88,179.81,179.74,79.0]
[1747189984584,78.88,179.81,179.77,5.5622]
[1747189985383,78.88,179.81,179.76,5.5626]
[1747189985985,78.88,179.81,179.77,5.562]
[1747189986975,84.4412,179.81,179.77,5.562]
[1747189987882,84.4412,179.81,179.74,78.8]
[1747189987883,84.4412,179.81,179.78,5.562]
[1747189988080,78.88,179.81,179.78,5.562]
[1747189989681,78.88,179.81,179.79,5.5617]
[1747189989878,84.4411,179.81,179.74,78.8]
[1747189990486,78.88,179.81,179.78,5.562]
[1747189990784,368.38828856,179.86,179.74,78.8]
[1747189990986,5.5605,179.83,179.79,5.5615]
[1747189991188,78.76,179.82,179.79,5.5615]
[1747189992487,78.76,179.82,179.8,5.5613]
[1747189993587,84.3005,179.83,179.8,5.5613]
[1747189994290,5.5608,179.82,179.79,5.5616]
[1747189994790,5.5608,179.82,179.8,5.5614]
[1747189996593,84.3006,179.83,179.8,5.5614]
[1747189996792,78.74,179.83,179.8,5.5614]
[1747189997087,5.5608,179.82,179.75,5.4383]
[1747189997591,5.5608,179.82,179.79,5.5614]
[1747189997791,5.5608,179.82,179.75,5.4383]
[1747189999694,5.5608,179.82,179.78,5.5617]
[1747190000291,5.5608,179.82,179.79,5.5617]
[1747190000589,84.3006,179.83,179.79,5.5617]
[1747190001094,5.5608,179.82,179.79,5.5617]
[1747190001485,78.74,179.83,179.78,5.5619]
[1747190001685,5.5608,179.82,179.78,5.5619]
[1747190001889,5.5608,179.82,179.75,5.4383]
[1747190002089,84.3007,179.83,179.79,5.5616]
[1747190002794,5.5608,179.82,179.79,5.5616]
[1747190003195,78.74,179.83,179.79,5.5616]
[1747190003395,84.3007,179.83,179.79,5.5616]
[1747190003592,78.74,179.83,179.69,480.8]
[1747190003799,78.74,179.83,179.7,78.8]
[1747190003992,5.5622,179.78,179.7,78.8]
[1747190004187,78.74,179.83,179.75,5.5629]
[1747190004594,78.74,179.83,179.75,5.5627]
[1747190004793,78.74,179.83,179.7,83.18828856]
[1747190004998,5.5619,179.79,179.7,83.18828856]
[1747190005201,5.5619,179.79,179.75,5.5627]
[1747190005394,5.5619,179.79,179.7,83.18828856]
[1747190005594,5.5615,179.8,179.7,83.18828856]
[1747190007300,78.74,179.83,179.7,83.18828856]
[1747190007301,5.5612,179.81,179.7,83.18828856]
[1747190008405,5.5608,179.82,179.7,83.18828856]
[1747190008600,78.74,179.83,179.7,83.18828856]
[1747190009003,5.5611,179.81,179.7,83.18828856]
[1747190009203,78.74,179.83,179.7,83.18828856]
[1747190009602,5.5613,179.81,179.76,5.5626]
[1747190009907,78.74,179.83,179.7,83.18828856]
[1747190010606,5.5614,179.8,179.75,5.5627]
[1747190010794,78.74,179.83,179.7,83.18828856]
[1747190011102,78.54,179.82,179.73,4.38828856]
[1747190011704,78.54,179.82,179.74,78.8]
[1747190012004,78.54,179.82,179.78,5.562]
[1747190012298,78.54,179.82,179.74,78.8]
[1747190012504,78.54,179.82,179.78,5.5618]
[1747190012705,78.54,179.82,179.74,78.8]
[1747190013205,78.54,179.82,179.78,5.5618]
[1747190013505,78.54,179.82,179.74,78.8]
[1747190013799,78.54,179.82,179.78,5.5618]
[1747190014106,78.54,179.82,179.74,78.8]
[1747190014403,78.54,179.82,179.79,5.5615]
[1747190015103,78.54,179.82,179.74,78.8]
[1747190015705,5.5603,179.84,179.74,78.8]
[1747190015904,78.48,179.83,179.74,78.8]
[1747190016104,78.48,179.83,179.79,5.5615]
[1747190016300,84.0405,179.83,179.79,5.5615]
[1747190016907,78.48,179.83,179.79,5.5615]
[1747190017205,78.46,179.84,179.8,5.5613]
[1747190017804,78.46,179.84,179.79,5.5616]
[1747190018007,84.0204,179.84,179.79,5.5616]
[1747190018205,84.0204,179.84,179.74,78.8]
[1747190019006,84.0204,179.84,179.79,5.5615]
[1747190019306,5.5606,179.83,179.79,5.5615]
[1747190019507,78.46,179.84,179.74,78.8]
[1747190019909,84.0204,179.84,179.74,78.8]
[1747190020617,84.0204,179.84,179.79,5.5615]
[1747190021209,84.0204,179.84,179.8,5.5614]
[1747190021808,5.5605,179.83,179.8,5.5614]
[1747190022808,78.46,179.84,179.75,78.48]
[1747190023012,4.38828856,179.82,179.71,78.48]
[1747190023409,5.5623,179.77,179.71,78.48]
[1747190023812,78.38,179.78,179.71,78.48]
[1747190024010,78.38,179.78,179.73,5.5634]
[1747190024208,78.38,179.78,179.71,78.48]
[1747190024609,78.38,179.78,179.71,5.5641]
[1747190024911,78.38,179.78,179.69,480.8]
[1747190025210,5.5636,179.73,179.7,5.5644]
[1747190025812,78.38,179.78,179.7,5.5644]
[1747190026010,78.38,179.78,179.71,5.5641]
[1747190026414,78.38,179.78,179.68,78.48]
[1747190026615,82.76828856,179.78,179.7,5.5643]
[1747190027212,82.76828856,179.78,179.71,5.5641]
[1747190027413,82.76828856,179.78,179.66,78.48]
[1747190027917,78.38,179.78,179.73,5.5635]
[1747190028214,78.38,179.78,179.66,78.48]
[1747190028415,78.32,179.77,179.76,5.5624]
[1747190031121,78.32,179.77,179.75,5.5629]
[1747190031317,78.32,179.77,179.68,4.38828856]
[1747190031720,78.32,179.77,179.76,5.5626]
[1747190034026,9.94948856,179.81,179.78,5.5618]
[1747190034322,364.0,179.82,179.72,78.5]
[1747190034527,78.24,179.8,179.73,3.6221]
[1747190034928,369.5605,179.83,179.73,3.6221]
[1747190034929,364.0,179.83,179.73,3.6221]
[1747190035127,78.24,179.8,179.73,3.6221]
[1747190035427,78.24,179.8,179.79,5.5617]
[1747190037120,364.0,179.83,179.8,5.5613]
[1747190037318,78.2,179.82,179.73,3.6221]
[1747190039630,78.2,179.82,179.79,5.5617]
[1747190041230,486.3402,179.84,179.79,5.5617]
[1747190041432,78.14,179.83,179.79,5.5617]
[1747190041728,78.14,179.83,179.78,5.562]
[1747190041931,78.14,179.83,179.73,3.6221]
[1747190042430,5.5611,179.82,179.73,3.6221]
[1747190042729,78.14,179.83,179.73,3.6221]
[1747190043029,83.7005,179.83,179.73,3.6221]
[1747190043230,78.14,179.83,179.73,3.6221]
[1747190043628,83.7007,179.83,179.79,5.5617]
[1747190043835,78.14,179.83,179.73,3.6221]
[1747190044130,4.38828856,179.82,179.7,80.2742]
[1747190044335,5.5619,179.79,179.7,80.2742]
[1747190044536,4.38828856,179.79,179.7,78.48]
[1747190044834,5.5628,179.76,179.72,5.5636]
[1747190045028,78.08,179.75,179.66,82.0033]
[1747190045233,83.643,179.75,179.66,82.0033]
[1747190045431,78.08,179.75,179.66,82.0033]
[1747190045935,5.5634,179.74,179.66,82.0033]
[1747190048033,5.5638,179.73,179.66,82.0033]
[1747190048237,78.08,179.75,179.69,5.5648]
[1747190048737,5.5638,179.73,179.69,5.5648]
[1747190048938,5.5638,179.73,179.66,82.0033]
[1747190048939,4.38828856,179.73,179.6,558.86]
[1747190049239,5.5654,179.68,179.6,558.86]
[1747190049436,78.02,179.67,179.6,558.86]
[1747190049938,83.5857,179.67,179.6,558.86]
[1747190050139,83.5857,179.67,179.63,5.5665]
[1747190051137,78.02,179.67,179.63,5.5665]
[1747190051434,78.02,179.67,179.61,5.5671]
[1747190051640,78.02,179.67,179.58,5.4136]
[1747190051840,5.5658,179.66,179.58,5.4136]
[1747190052338,78.02,179.67,179.58,5.4136]
[1747190052537,5.5661,179.65,179.58,5.4136]
[1747190052740,5.5661,179.65,179.61,5.5671]
[1747190053244,5.5661,179.65,179.62,5.5669]
[1747190053539,5.5661,179.65,179.58,5.4136]
[1747190053941,5.5661,179.65,179.61,5.567]
[1747190054737,5.5658,179.66,179.58,5.4136]
[1747190054945,4.38828856,179.7,179.58,5.4136]
[1747190055143,77.94,179.69,179.58,5.4136]
[1747190055343,4.38828856,179.7,179.58,5.4136]
[1747190055544,77.96,179.69,179.58,5.4136]
[1747190055946,5.5657,179.67,179.63,5.5664]
[1747190056151,77.96,179.69,179.58,5.4136]
[1747190056742,5.5658,179.66,179.63,5.5666]
[1747190057144,77.96,179.69,179.58,5.4136]
[1747190057447,5.5654,179.67,179.58,5.4136]
[1747190057648,77.96,179.69,179.58,5.4136]
[1747190058149,77.92,179.68,179.58,5.4136]
[1747190058943,364.0,179.71,179.58,5.4136]
[1747190059149,77.9,179.7,179.58,5.4136]
[1747190059449,77.9,179.7,179.66,5.5655]
[1747190060152,83.4645,179.7,179.65,5.566]
[1747190060452,83.4645,179.7,179.62,78.1]
[1747190060853,77.9,179.7,179.66,5.5657]
[1747190062754,77.9,179.7,179.62,78.1]
[1747190062952,78.1,179.75,179.62,78.1]
[1747190063152,77.82,179.74,179.62,78.1]
[1747190063450,77.82,179.73,179.62,78.1]
[1747190064156,83.3836,179.73,179.62,78.1]
[1747190065154,83.3836,179.73,179.68,5.5649]
[1747190065559,83.3836,179.73,179.62,78.1]
[1747190065857,83.3836,179.73,179.69,5.5648]
[1747190066155,77.82,179.73,179.69,5.5648]
[1747190067255,5.563,179.75,179.62,78.1]
[1747190067457,77.76,179.74,179.62,78.1]
[1747190067956,77.76,179.74,179.7,5.5643]
[1747190068256,5.563,179.75,179.63,4.38828856]
[1747190068456,77.74,179.74,179.7,5.5643]
[1747190069756,77.74,179.74,179.71,5.5641]
[1747190070754,77.74,179.74,179.72,5.5639]
[1747190070957,77.68,179.74,179.63,4.38828856]
[1747190071953,77.66,179.76,179.63,4.38828856]
[1747190072959,77.66,179.76,179.73,5.5634]
[1747190073162,82.04828856,179.76,179.62,481.06]
[1747190073460,82.04828856,179.76,179.63,78.1]
[1747190073661,5.5639,179.72,179.68,5.5649]
[1747190073960,77.62,179.71,179.68,5.5649]
[1747190075162,77.62,179.71,179.69,5.5648]
[1747190075359,77.62,179.71,179.63,78.1]
[1747190075657,5.5648,179.69,179.65,5.5658]
[1747190075861,5.5648,179.69,179.63,78.1]
[1747190076064,77.62,179.71,179.63,78.1]
[1747190076262,5.5646,179.7,179.63,78.1]
[1747190076761,5.5646,179.7,179.66,5.5655]
[1747190077063,364.0,179.78,179.63,78.1]
[1747190077262,77.56,179.77,179.71,5.5639]
[1747190077463,77.56,179.77,179.63,82.48828856]
[1747190077762,83.1226,179.77,179.63,82.48828856]
[1747190078364,83.1226,179.77,179.71,5.5639]
[1747190078565,83.1226,179.77,179.63,160.02828856]
[1747190078865,83.1226,179.77,179.72,5.5636]
[1747190079366,5.5627,179.76,179.72,5.5636]
[1747190079863,83.1224,179.77,179.73,5.5635]
[1747190080165,77.56,179.77,179.63,160.02828856]
[1747190080368,5.563,179.75,179.72,5.5638]
[1747190080566,77.56,179.77,179.63,160.02828856]
[1747190080766,4.38828856,179.76,179.63,160.02828856]
[1747190081667,9.95118856,179.76,179.63,160.02828856]
[1747190081867,9.95118856,179.76,179.63,82.48828856]
[1747190082264,9.95118856,179.76,179.72,5.5637]
[1747190082568,9.95118856,179.76,179.63,82.48828856]
[1747190082569,5.563,179.75,179.63,82.48828856]
[1747190082763,5.563,179.75,179.71,5.564]
[1747190083067,5.563,179.75,179.63,82.48828856]
[1747190084168,9.95098856,179.76,179.63,82.48828856]
[1747190084368,4.38828856,179.76,179.63,82.48828856]
[1747190084768,5.563,179.75,179.71,5.564]
[1747190084967,5.563,179.75,179.63,82.48828856]
[1747190085370,9.95098856,179.76,179.72,5.5639]
[1747190085667,4.38828856,179.76,179.72,5.5639]
[1747190086268,9.95118856,179.76,179.63,82.48828856]
[1747190086464,4.38828856,179.76,179.63,82.48828856]
[1747190087369,5.563,179.75,179.72,5.5637]
[1747190087571,4.38828856,179.76,179.63,78.1]
[1747190087868,4.38828856,179.76,179.63,77.58]
[1747190088071,5.5639,179.72,179.63,77.58]
[1747190088267,77.34,179.71,179.63,77.58]
[1747190088671,77.34,179.71,179.69,5.5647]
[1747190088871,77.34,179.71,179.63,77.58]
[1747190090071,77.3,179.71,179.63,77.58]
[1747190092069,77.28,179.71,179.63,77.58]
[1747190092671,77.28,179.71,179.7,5.5645]
[1747190093669,77.28,179.71,179.62,558.64]
[1747190094772,364.0,179.74,179.62,558.64]
[1747190094972,77.22,179.73,179.62,558.64]
[1747190095175,364.0,179.74,179.62,558.64]
[1747190095371,77.2,179.73,179.7,5.5643]
[1747190095874,77.2,179.73,179.71,5.5642]
[1747190096274,5.5632,179.75,179.71,5.5642]
[1747190096474,77.18,179.74,179.71,5.5642]
[1747190096777,77.18,179.74,179.62,558.64]
[1747190097670,5.5636,179.73,179.62,558.64]
[1747190098077,4.38828856,179.73,179.62,558.64]
[1747190098378,5.5649,179.69,179.65,5.566]
[1747190098568,82.7049,179.69,179.65,5.566]
[1747190099379,77.14,179.69,179.66,5.5657]
[1747190100478,77.14,179.69,179.62,558.64]
[1747190102884,77.58,179.77,179.62,558.64]
[1747190103183,77.06,179.76,179.62,558.64]
[1747190103382,5.5637,179.73,179.62,558.64]
[1747190103580,77.06,179.76,179.62,558.64]
[1747190104184,5.5633,179.74,179.62,558.64]
[1747190105787,77.0,179.73,179.62,558.64]
[1747190105983,77.0,179.73,179.7,5.5644]
[1747190107189,82.5636,179.73,179.69,5.5648]
[1747190107587,77.0,179.73,179.62,558.64]
[1747190109487,82.5636,179.73,179.62,558.64]
[1747190109789,82.5636,179.73,179.68,5.5648]
[1747190110089,82.5636,179.73,179.62,558.64]
[1747190110290,77.0,179.73,179.62,558.64]
[1747190110983,77.0,179.73,179.7,5.5643]
[1747190112287,77.0,179.73,179.62,558.64]
[1747190112490,77.0,179.73,179.69,5.5648]
[1747190112790,77.0,179.73,179.62,558.64]
[1747190112991,77.0,179.73,179.69,5.5645]
[1747190113385,4.38828856,179.77,179.62,558.64]
[1747190113592,76.84,179.76,179.63,76.98]
[1747190113792,82.4027,179.76,179.72,5.5637]
[1747190114186,76.84,179.76,179.73,5.5635]
[1747190114791,82.4027,179.76,179.72,5.5638]
[1747190114983,76.84,179.76,179.72,5.5638]
[1747190115502,76.84,179.76,179.71,5.5641]
[1747190115801,76.84,179.76,179.63,76.98]
[1747190116002,5.5638,179.73,179.63,76.98]
[1747190116202,5.5638,179.73,179.62,481.06]
[1747190116398,4.38828856,179.74,179.63,76.98]
[1747190116803,4.38828856,179.74,179.67,5.5652]
[1747190117004,5.5644,179.71,179.67,5.5652]
[1747190117205,76.76,179.7,179.67,5.5652]
[1747190117801,76.76,179.7,179.68,5.565]
[1747190118502,76.74,179.71,179.63,76.98]
[1747190118700,76.72,179.72,179.63,76.98]
[1747190119410,76.72,179.72,179.69,5.5647]
[1747190120108,82.284,179.72,179.68,5.565]
[1747190120399,82.284,179.72,179.63,76.98]
[1747190120902,76.72,179.72,179.62,558.04]
[1747190121301,5.5647,179.7,179.62,558.04]
[1747190121604,76.72,179.72,179.62,558.04]
[1747190122602,4.38828856,179.7,179.58,5.4136]
[1747190122807,4.38828856,179.7,179.58,82.3936]
[1747190123207,76.98,179.71,179.58,82.3936]
[1747190123608,5.5652,179.68,179.64,5.5661]
[1747190123808,76.62,179.67,179.64,5.5661]
[1747190124307,76.62,179.67,179.65,5.566]
[1747190129616,76.62,179.67,179.64,5.5663]
[1747190130118,76.62,179.67,179.65,5.5659]
[1747190131418,82.1855,179.67,179.64,5.5663]
[1747190131915,76.62,179.67,179.65,5.5659]
[1747190133318,76.62,179.67,179.64,5.5663]
[1747190133713,364.0,179.72,179.58,82.3936]
[1747190133907,76.4,179.74,179.6,4.38828856]
[1747190134213,4.38828856,179.76,179.6,4.38828856]
[1747190134412,76.4,179.75,179.69,5.5646]
[1747190134611,76.4,179.75,179.64,77.0]
[1747190134813,76.4,179.75,179.65,5.5868]
[1747190135117,76.38,179.74,179.65,5.5868]
[1747190136216,76.38,179.74,179.71,5.564]
[1747190138412,81.9433,179.74,179.71,5.564]
[1747190139117,76.38,179.74,179.71,5.564]
[1747190139416,76.38,179.74,179.65,5.5868]
[1747190140216,81.9433,179.74,179.7,5.5644]
[1747190140417,76.38,179.74,179.65,5.5868]
[1747190140614,4.38828856,179.75,179.65,5.5868]
[1747190140814,76.24,179.74,179.65,5.5868]
[1747190141415,77.0,179.77,179.65,5.5868]
[1747190141613,76.24,179.75,179.65,5.5868]
[1747190142114,77.0,179.77,179.65,5.5868]
[1747190142316,76.22,179.76,179.65,5.5868]
[1747190142519,76.22,179.76,179.73,5.5633]
[1747190143920,369.5621,179.78,179.73,5.5633]
[1747190144115,192.37610761,179.79,179.7,76.34]
[1747190144312,76.16,179.81,179.71,76.34]
[1747190144519,76.16,179.81,179.72,5.5389]
[1747190145610,76.16,179.81,179.78,5.5618]
[1747190145809,9.94848856,179.84,179.78,5.5618]
[1747190146010,76.12,179.83,179.78,5.5618]
[1747190146215,26.21168105,179.82,179.77,5.5623]
[1747190146723,5.5611,179.81,179.75,5.563]
[1747190147017,4.38828856,179.81,179.72,5.5389]
[1747190147220,96.97088105,179.82,179.72,3.7432]
[1747190147414,4.38828856,179.8,179.72,3.7432]
[1747190147921,5.5629,179.77,179.73,5.5639]
[1747190148123,4.38828856,179.8,179.72,3.7432]
[1747190149121,96.97088105,179.82,179.72,3.7432]
[1747190149323,20.65088105,179.82,179.72,80.0632]
[1747190149522,76.04,179.81,179.73,1.8561]
[1747190149724,76.04,179.81,179.78,5.5623]
[1747190151325,76.04,179.81,179.79,5.5622]
[1747190152521,76.04,179.81,179.78,5.5626]
[1747190152921,76.04,179.81,179.73,1.8561]
[1747190153125,76.04,179.81,179.78,5.5624]
[1747190153430,76.04,179.81,179.73,1.8561]
[1747190154926,76.04,179.81,179.78,5.5624]
[1747190155125,76.04,179.81,179.73,1.8561]
[1747190155626,76.04,179.81,179.78,5.5624]
[1747190155820,20.65088105,179.82,179.73,1.8561]
[1747190156021,96.53088105,179.82,179.73,1.8561]
[1747190156327,96.53088105,179.82,179.79,5.5622]
[1747190157025,20.65088105,179.82,179.79,5.5622]
[1747190157432,20.65088105,179.82,179.78,5.5625]
[1747190157928,20.65088105,179.82,179.79,5.5622]
[1747190158927,20.65088105,179.82,179.73,1.8561]
[1747190159128,20.65088105,179.82,179.73,78.1561]
[1747190159328,26.21228105,179.82,179.78,5.5625]
[1747190159627,20.65088105,179.82,179.73,78.1561]
[1747190159929,5.5619,179.81,179.77,5.5627]
[1747190160128,5.5619,179.81,179.73,78.1561]
[1747190160528,5.5619,179.81,179.73,1.8561]
[1747190160729,20.65088105,179.82,179.73,1.8561]
[1747190161428,5.5622,179.8,179.76,5.563]
[1747190161625,5.5622,179.8,179.73,1.8561]
[1747190162929,5.5625,179.79,179.73,1.8561]
[1747190163128,20.65088105,179.82,179.73,1.8561]
[1747190163525,5.5621,179.8,179.73,1.8561]
[1747190163931,5.5621,179.8,179.76,5.563]
[1747190164229,5.5623,179.79,179.73,1.8561]
[1747190164434,4.38828856,179.81,179.74,5.5636]
[1747190164626,80.06828856,179.78,179.65,1.9041]
[1747190164825,4.38828856,179.75,179.67,79.9015]
[1747190165021,4.38828856,179.75,179.67,1.8688]
[1747190165224,80.68828856,179.75,179.67,1.8688]
[1747190165833,80.68828856,179.75,179.63,76.3]
[1747190166328,5.5649,179.71,179.63,76.3]
[1747190166529,75.66,179.7,179.63,76.3]
[1747190166723,75.64,179.71,179.63,76.3]
[1747190166919,75.64,179.71,179.7,5.5651]
[1747190167736,75.64,179.71,179.63,76.3]
[1747190167926,75.64,179.71,179.61,5.516]
[1747190168225,75.64,179.71,179.61,81.136]
[1747190168733,81.205,179.71,179.61,81.136]
[1747190168930,75.64,179.71,179.61,81.136]
[1747190169229,75.64,179.71,179.68,5.5654]
[1747190170030,75.64,179.71,179.7,5.5651]
[1747190170230,75.64,179.71,179.61,81.136]
[1747190170532,75.64,179.71,179.69,5.5653]
[1747190171630,75.64,179.71,179.68,5.5656]
[1747190173032,81.2048,179.71,179.68,5.5656]
[1747190173234,75.64,179.71,179.68,5.5656]
[1747190173438,75.64,179.71,179.69,5.5653]
[1747190174132,75.64,179.71,179.61,81.136]
[1747190174933,5.5657,179.68,179.64,5.5667]
[1747190175234,5.5657,179.68,179.61,81.136]
[1747190175534,5.5651,179.7,179.66,5.5661]
[1747190175729,75.64,179.71,179.61,81.136]
[1747190176232,75.64,179.71,179.68,5.5654]
[1747190176728,75.64,179.71,179.69,5.5652]
[1747190177335,4.38828856,179.72,179.61,81.136]
[1747190177531,75.4,179.71,179.61,81.136]
[1747190177936,75.4,179.71,179.7,5.565]
[1747190178329,439.64,179.75,179.61,81.136]
[1747190178835,75.38,179.74,179.61,81.136]
[1747190179039,75.38,179.74,179.61,160.90428856]
[1747190179536,445.2031,179.75,179.61,160.90428856]
[1747190179835,75.36,179.74,179.61,160.90428856]
[1747190180638,5.5624,179.77,179.64,4.38828856]
[1747190181134,75.66,179.79,179.64,4.38828856]
[1747190181432,75.32,179.78,179.67,4.38828856]
[1747190181640,75.32,179.78,179.68,81.2507]
[1747190182338,75.32,179.78,179.77,5.5623]
[1747190185640,566.62888856,179.83,179.78,5.5619]
[1747190186140,5.5602,179.84,179.79,5.5615]
[1747190186341,75.2,179.83,179.79,5.5615]
[1747190187342,75.2,179.83,179.7,4.38828856]
[1747190187638,25.03916961,179.82,179.71,75.64]
[1747190188039,5.5615,179.8,179.71,75.64]
[1747190188943,5.5615,179.8,179.75,5.5626]
[1747190189341,5.5615,179.8,179.68,5.5907]
[1747190189639,25.03916961,179.82,179.76,5.5626]
[1747190189838,30.60016961,179.82,179.69,75.64]
[1747190190033,25.03916961,179.82,179.69,75.64]
[1747190191646,20.65088105,179.82,179.69,75.64]
[1747190191944,20.65088105,179.82,179.7,4.38828856]
[1747190192743,20.65088105,179.82,179.78,5.5618]
[1747190193139,364.0,179.97,179.76,4.38828856]
[1747190193344,4.38828856,179.9,179.77,3.5508]
[1747190193645,75.02,179.89,179.85,5.5598]
[1747190194140,75.02,179.89,179.78,75.62]
[1747190194645,75.02,179.89,179.87,5.5592]
[1747190194846,4.38828856,179.93,179.79,4.38828856]
[1747190195144,74.98,179.9,179.79,4.38828856]